bitfinex/quotes_BTCUSD_20250614
["timestamp","ask_amount","ask_price","bid_price","bid_amount"]
[1749932173754,0.73891549,104560.0,104550.0,0.03404338]
[1749932173973,0.74784002,104560.0,104550.0,0.03404338]
[1749932174630,0.73895549,104560.0,104550.0,0.03404338]
[1749932174859,0.36344518,104560.0,104550.0,0.30563659]
[1749932175095,0.34888475,104560.0,104550.0,0.28463271]
[1749932175322,0.00888504,104560.0,104550.0,0.22113197]
[1749932175548,0.00956361,104560.0,104550.0,0.22113197]
[1749932176059,0.00956361,104560.0,104550.0,0.26490412]
[1749932176060,0.21996855,104560.0,104550.0,0.26490412]
[1749932176248,0.21996855,104560.0,104550.0,0.29359768]
[1749932176479,0.21040522,104560.0,104550.0,0.06404338]
[1749932176729,0.55040522,104560.0,104550.0,0.06404338]
[1749932177189,0.55928779,104560.0,104550.0,0.00114338]
[1749932177451,1.03740747,104560.0,104550.0,0.00114338]
[1749932177654,1.03740726,104560.0,104550.0,0.00114338]
[1749932177888,1.12467444,104560.0,104550.0,0.00114338]
[1749932178107,1.13355643,104560.0,104550.0,0.00114338]
[1749932178330,1.03740721,104560.0,104550.0,0.00114338]
[1749932178595,0.55040522,104560.0,104550.0,0.27446836]
[1749932178820,0.78129563,104560.0,104550.0,0.26490402]
[1749932179045,0.78129563,104560.0,104550.0,0.25533941]
[1749932179046,0.75328531,104560.0,104550.0,0.25533941]
[1749932179257,0.75328531,104560.0,104550.0,0.32104722]
[1749932179475,0.75328531,104560.0,104550.0,0.33061183]
[1749932179714,0.76216859,104560.0,104550.0,0.33061183]
[1749932179986,0.60192858,104560.0,104550.0,0.33061183]
[1749932180216,0.75336531,104560.0,104550.0,0.33061183]
[1749932180654,0.75336531,104560.0,104550.0,0.34017635]
[1749932180887,0.7622486,104560.0,104550.0,0.31148251]
[1749932181132,0.76224858,104560.0,104550.0,0.06404338]
[1749932181377,0.76224857,104560.0,104550.0,0.00114338]
[1749932181601,0.76224841,104560.0,104550.0,0.00114338]
[1749932181823,0.76224813,104560.0,104550.0,0.00114338]
[1749932182267,0.76224752,104560.0,104550.0,0.00114338]
[1749932182494,0.41336531,104560.0,104550.0,0.00114338]
[1749932183391,0.42224817,104560.0,104550.0,0.00114338]
[1749932183657,0.42224738,104560.0,104550.0,0.00114338]
[1749932183856,0.42224662,104560.0,104550.0,0.00114338]
[1749932184106,0.41336531,104560.0,104550.0,0.00114338]
[1749932184343,0.01844482,104560.0,104550.0,0.25313941]
[1749932184557,0.24037113,104560.0,104550.0,0.3357528]
[1749932184788,0.01912648,104560.0,104550.0,0.3357528]
[1749932185021,0.23088751,104570.0,104560.0,0.27110495]
[1749932185251,0.42282715,104570.0,104560.0,0.25197773]
[1749932185478,0.43102924,104570.0,104560.0,0.26154161]
[1749932185702,0.27078924,104570.0,104560.0,0.26154161]
[1749932185937,0.42226751,104570.0,104560.0,0.26154161]
[1749932186276,0.23988978,104570.0,104560.0,0.32873504]
[1749932186369,0.2398898,104570.0,104560.0,0.32873504]
[1749932186596,0.43214923,104570.0,104560.0,0.25197773]
[1749932186832,0.41302386,104570.0,104560.0,0.25197773]
[1749932187071,0.41302433,104570.0,104560.0,0.25197773]
[1749932187300,0.40414213,104570.0,104560.0,0.0607]
[1749932187569,0.4130234,104570.0,104560.0,0.25197773]
[1749932187793,0.2100234,104570.0,104560.0,0.25197773]
[1749932188020,0.2100234,104570.0,104560.0,0.0607]
[1749932188021,0.41306433,104570.0,104560.0,0.0607]
[1749932188242,0.41306333,104570.0,104560.0,0.0607]
[1749932188509,0.75374501,104570.0,104560.0,0.29153765]
[1749932188748,0.76330761,104570.0,104560.0,0.27110504]
[1749932188966,0.77218869,104570.0,104560.0,0.27110504]
[1749932189431,0.77218973,104570.0,104560.0,0.27110504]
[1749932189663,0.76330761,104570.0,104560.0,0.25197773]
[1749932190095,0.76262593,104570.0,104560.0,0.0305]
[1749932190332,0.76262691,104570.0,104560.0,0.0305]
[1749932190827,0.76262692,104570.0,104560.0,0.0612]
[1749932191059,0.75374501,104570.0,104560.0,0.0612]
[1749932191288,0.76262681,104570.0,104560.0,0.0612]
[1749932191744,0.75374501,104570.0,104560.0,0.0612]
[1749932191971,0.76262591,104570.0,104560.0,0.0612]
[1749932192207,0.7626259,104570.0,104560.0,0.0612]
[1749932192432,0.55958688,104570.0,104560.0,0.0612]
[1749932192694,0.76250688,104570.0,104560.0,0.0612]
[1749932193188,0.7625059,104570.0,104560.0,0.0612]
[1749932193429,0.76250588,104570.0,104560.0,0.0612]
[1749932193664,0.75362501,104570.0,104560.0,0.0612]
[1749932193886,0.76250688,104570.0,104560.0,0.0612]
[1749932194119,0.76250598,104570.0,104560.0,0.0612]
[1749932194561,0.76250677,104570.0,104560.0,0.0612]
[1749932194791,0.75362501,104570.0,104560.0,0.0612]
[1749932195481,0.76250717,104570.0,104560.0,0.0612]
[1749932195728,0.76250718,104570.0,104560.0,0.0612]
[1749932195945,0.76250792,104570.0,104560.0,0.0612]
[1749932196396,0.76250718,104570.0,104560.0,0.0612]
[1749932196624,0.75362501,104570.0,104560.0,0.0612]
[1749932197335,0.76250793,104570.0,104560.0,0.0612]
[1749932197555,0.75362501,104570.0,104560.0,0.0612]
[1749932197777,0.76250793,104570.0,104560.0,0.0612]
[1749932197993,0.75362501,104570.0,104560.0,0.0612]
[1749932198433,0.76250719,104570.0,104560.0,0.0612]
[1749932198676,0.76250793,104570.0,104560.0,0.0612]
[1749932199154,0.76250719,104570.0,104560.0,0.0612]
[1749932199367,0.75362501,104570.0,104560.0,0.0612]
[1749932199594,0.76250793,104570.0,104560.0,0.0612]
[1749932199812,0.75362501,104570.0,104560.0,0.0612]
[1749932200042,0.76250718,104570.0,104560.0,0.0612]
[1749932200270,0.75362501,104570.0,104560.0,0.0612]
[1749932200499,0.75362501,104570.0,104560.0,0.26204161]
[1749932200731,0.018765,104570.0,104560.0,0.33990594]
[1749932200965,0.34988269,104570.0,104560.0,0.41552388]
[1749932201211,0.00988269,104570.0,104560.0,0.51176564]
[1749932201935,0.00888269,104570.0,104560.0,0.51176564]
[1749932202155,0.00988269,104570.0,104560.0,0.51476564]
[1749932202378,0.00988269,104570.0,104560.0,0.51176564]
[1749932202620,0.00988269,104570.0,104560.0,0.4371477]
[1749932202892,0.01088269,104570.0,104560.0,0.4441477]
[1749932203141,0.01088269,104570.0,104560.0,0.4431477]
[1749932203593,0.01088269,104570.0,104560.0,0.39797392]
[1749932205186,0.03000762,104570.0,104560.0,0.38841068]
[1749932205425,0.38126761,104570.0,104560.0,0.0722]
[1749932205708,0.38058949,104570.0,104560.0,0.011]
[1749932205947,0.37170501,104570.0,104560.0,0.011]
[1749932206193,0.3805886,104570.0,104560.0,0.011]
[1749932206416,0.3805886,104570.0,104560.0,0.007]
[1749932206417,0.38058849,104570.0,104560.0,0.007]
[1749932207111,0.00956388,104560.0,104550.0,0.29489576]
[1749932207339,0.00956342,104560.0,104550.0,0.34447253]
[1749932207561,0.01912712,104560.0,104550.0,0.29489511]
[1749932207782,0.01912675,104560.0,104550.0,0.29489511]
[1749932207998,0.02869036,104560.0,104550.0,0.29489511]
[1749932208253,0.03825406,104560.0,104550.0,0.29489511]
[1749932208752,0.22953179,104560.0,104550.0,0.27676726]
[1749932208978,0.03925406,104560.0,104550.0,0.30946001]
[1749932209663,0.04881785,104560.0,104550.0,0.30946001]
[1749932209892,0.04633785,104560.0,104550.0,0.30946001]
[1749932210114,0.23761613,104560.0,104550.0,0.2903316]
[1749932210348,0.23053271,104560.0,104550.0,0.28076726]
[1749932210564,0.2209691,104560.0,104550.0,0.29989621]
[1749932211932,0.02012749,104560.0,104550.0,0.29989621]
[1749932212201,0.02012749,104560.0,104550.0,0.35953785]
[1749932212652,0.02969137,104560.0,104550.0,0.30946037]
[1749932212876,0.2209691,104560.0,104550.0,0.29989621]
[1749932213785,0.20184161,104560.0,104550.0,0.07034338]
[1749932214006,0.20184161,104560.0,104550.0,0.03784338]
[1749932214232,0.54184161,104560.0,104550.0,0.00514338]
[1749932214454,0.55072224,104560.0,104550.0,0.00514338]
[1749932214710,0.55069964,104560.0,104550.0,0.00514338]
[1749932214927,0.55069963,104560.0,104550.0,0.00514338]
[1749932215149,0.55069962,104560.0,104550.0,0.00514338]
[1749932215371,0.5506996,104560.0,104550.0,0.00514338]
[1749932215822,0.55069961,104560.0,104550.0,0.00514338]
[1749932216501,0.5506996,104560.0,104550.0,0.00514338]
[1749932216715,0.54184161,104560.0,104550.0,0.00514338]
[1749932217172,0.55069962,104560.0,104550.0,0.00514338]
[1749932217406,0.5506996,104560.0,104550.0,0.00514338]
[1749932217626,0.55069961,104560.0,104550.0,0.00514338]
[1749932218282,0.54013575,104560.0,104550.0,0.00514338]
[1749932219025,0.73127773,104560.0,104550.0,0.00514338]
[1749932219255,0.76337773,104560.0,104550.0,0.00514338]
[1749932219490,1.01493561,104560.0,104550.0,0.00514338]
[1749932219716,1.38686034,104560.0,104550.0,0.00514338]
[1749932219943,1.41523455,104560.0,104550.0,0.00514338]
[1749932220171,1.42478951,104560.0,104550.0,0.00514338]
[1749932220426,1.42478951,104560.0,104550.0,0.00114338]
[1749932220661,1.42478951,104560.0,104550.0,0.00314338]
[1749932220896,1.42478951,104560.0,104550.0,0.00114338]
[1749932221127,1.41519479,104560.0,104550.0,0.00014338]
[1749932221384,1.51134401,104560.0,104550.0,0.00014338]
[1749932221613,1.52493873,104560.0,104550.0,0.00114338]
[1749932221843,1.51532894,104560.0,104550.0,0.00114338]
[1749932222083,1.28251887,104560.0,104550.0,0.03364338]
[1749932222420,1.28251887,104560.0,104550.0,0.06384338]
[1749932222421,1.13795773,104560.0,104550.0,0.06384338]
[1749932222521,1.14095773,104560.0,104550.0,0.03364338]
[1749932222750,1.26789949,104560.0,104550.0,0.00114338]
[1749932222981,1.2767792,104560.0,104550.0,0.00114338]
[1749932223206,1.26789949,104560.0,104550.0,0.00114338]
[1749932223435,1.37292858,104560.0,104550.0,0.00114338]
[1749932223654,1.36404871,104560.0,104550.0,0.00114338]
[1749932224102,1.38404871,104560.0,104550.0,0.00114338]
[1749932224666,1.28595449,104560.0,104550.0,0.00114338]
[1749932225736,1.33935449,104560.0,104550.0,0.00114338]
[1749932226374,1.36767387,104560.0,104550.0,0.00114338]
[1749932228767,1.63221472,104560.0,104550.0,0.00114338]
[1749932229228,1.67014389,104560.0,104550.0,0.00114338]
[1749932229438,1.72836394,104560.0,104550.0,0.00114338]
[1749932229648,1.63221472,104560.0,104550.0,0.00114338]
[1749932229853,1.47229472,104560.0,104550.0,0.00114338]
[1749932230124,1.32925472,104560.0,104550.0,0.00114338]
[1749932230337,1.32921472,104560.0,104550.0,0.00114338]
[1749932230765,1.47956394,104560.0,104550.0,0.00114338]
[1749932231425,1.47956394,104560.0,104530.0,0.0619]
[1749932231426,0.6104451,104540.0,104530.0,0.0619]
[1749932231631,0.7712851,104540.0,104530.0,0.0619]
[1749932233109,0.7722851,104540.0,104530.0,0.0639]
[1749932233320,1.1122851,104540.0,104530.0,0.0639]
[1749932233524,1.1410441,104540.0,104530.0,0.0639]
[1749932234508,1.25728586,104540.0,104530.0,0.002]
[1749932234734,1.38383508,104540.0,104530.0,0.002]
[1749932235397,1.41214038,104540.0,104530.0,0.002]
[1749932235651,1.44938123,104540.0,104530.0,0.002]
[1749932235892,0.20093751,104510.0,104500.0,0.0652]
[1749932236138,0.42425751,104510.0,104500.0,0.03214778]
[1749932236842,0.76425751,104510.0,104500.0,0.03214778]
[1749932237532,0.80385726,104510.0,104500.0,0.03214778]
[1749932237838,0.95850837,104510.0,104500.0,0.03314778]
[1749932238063,0.95850837,104510.0,104500.0,0.00104778]
[1749932238532,1.01160837,104510.0,104500.0,0.00104778]
[1749932238755,1.02614922,104510.0,104500.0,0.00104778]
[1749932239235,1.05385283,104510.0,104500.0,4.778e-05]
[1749932239468,1.05385283,104510.0,104500.0,0.00104778]
[1749932239691,1.05685283,104510.0,104500.0,0.00104778]
[1749932239944,0.77342348,104510.0,104500.0,0.00104778]
[1749932240183,1.14842348,104510.0,104500.0,0.00104778]
[1749932240412,1.12842348,104510.0,104500.0,0.00104778]
[1749932240662,1.14842348,104510.0,104500.0,0.00104778]
[1749932240883,0.94748597,104510.0,104500.0,0.00104778]
[1749932241105,1.14842348,104510.0,104500.0,0.00104778]
[1749932242221,1.21945213,104510.0,104500.0,0.00104778]
[1749932242452,1.24985213,104510.0,104500.0,0.00104778]
[1749932242684,1.21945213,104510.0,104500.0,0.00104778]
[1749932242933,1.13404263,104510.0,104500.0,0.06544778]
[1749932243428,0.93048263,104510.0,104500.0,0.06544778]
[1749932243642,1.13416263,104510.0,104500.0,0.06544778]
[1749932245683,0.93048263,104510.0,104500.0,0.06544778]
[1749932245907,1.13408263,104510.0,104500.0,0.06544778]
[1749932247234,0.95925363,104510.0,104500.0,0.06544778]
[1749932247674,1.16781139,104510.0,104500.0,0.06544778]
[1749932247897,1.16777139,104510.0,104500.0,0.06544778]
[1749932249016,1.16773139,104510.0,104500.0,0.06544778]
[1749932251055,0.60516997,104510.0,104500.0,0.2664047]
[1749932251302,0.783531,104510.0,104500.0,0.25683533]
[1749932251544,1.123531,104510.0,104500.0,0.03304778]
[1749932251778,1.123531,104510.0,104500.0,0.06544778]
[1749932252009,1.21984022,104510.0,104500.0,0.06544778]
[1749932252247,0.82380924,104510.0,104500.0,0.25683533]
[1749932252472,1.01784106,104510.0,104500.0,0.25683533]
[1749932252707,1.01784106,104510.0,104500.0,0.08341025]
[1749932252935,1.01784106,104510.0,104500.0,0.06544778]
[1749932253231,1.01776106,104510.0,104500.0,0.06544778]
[1749932253708,1.16107853,104510.0,104500.0,0.03304778]
[1749932253950,1.16119853,104510.0,104500.0,0.03304778]
[1749932254672,1.11412282,104510.0,104500.0,0.03304778]
[1749932255777,0.91048282,104510.0,104500.0,0.06574778]
[1749932256017,1.11456282,104510.0,104500.0,0.06574778]
[1749932256468,0.91048282,104510.0,104500.0,0.2667047]
[1749932256703,1.13460282,104510.0,104500.0,0.06574778]
[1749932257194,0.95379609,104510.0,104500.0,0.06574778]
[1749932258950,0.99186289,104510.0,104500.0,0.06574778]
[1749932261841,1.02092556,104510.0,104500.0,0.06574778]
[1749932264532,0.81680556,104510.0,104500.0,0.06574778]
[1749932264755,1.02088556,104510.0,104500.0,0.06574778]
[1749932264990,1.02088556,104510.0,104500.0,0.00104778]
[1749932264991,1.04919086,104510.0,104500.0,0.00104778]
[1749932265232,0.9651876,104510.0,104500.0,0.00104778]
[1749932265453,1.06040762,104510.0,104500.0,0.00104778]
[1749932268400,0.89948762,104510.0,104500.0,0.06644778]
[1749932268625,1.06028762,104510.0,104500.0,0.06644778]
[1749932268890,1.06028762,104510.0,104500.0,0.08441088]
[1749932269125,1.06028762,104510.0,104500.0,0.08441077]
[1749932269345,1.06028762,104510.0,104500.0,0.06644778]
[1749932269556,1.06028762,104510.0,104500.0,0.0844109]
[1749932269778,1.06028762,104510.0,104500.0,0.08441091]
[1749932270005,0.2863721,104510.0,104500.0,0.2674047]
[1749932270228,0.05720225,104510.0,104500.0,0.32364246]
[1749932270476,0.26116225,104510.0,104500.0,0.32364163]
[1749932270703,0.27073034,104510.0,104500.0,0.32364163]
[1749932270941,0.27073034,104510.0,104500.0,0.30568054]
[1749932271172,0.28986707,104510.0,104500.0,0.32364163]
[1749932271435,0.28029861,104510.0,104500.0,0.30468009]
[1749932271692,0.28029861,104510.0,104500.0,0.32464104]
[1749932271931,0.28129861,104510.0,104500.0,0.32464105]
[1749932272159,0.28129861,104510.0,104500.0,0.29593458]
[1749932272396,0.28129861,104510.0,104500.0,0.31507223]
[1749932272696,0.08690707,104510.0,104500.0,0.30550348]
[1749932272916,0.28133861,104510.0,104500.0,0.28754254]
[1749932273169,0.28133861,104510.0,104500.0,0.31507213]
[1749932273387,0.27177034,104510.0,104500.0,0.3150722]
[1749932273608,0.28133861,104510.0,104500.0,0.315072]
[1749932273833,0.28133861,104510.0,104500.0,0.31507209]
[1749932274048,0.28133861,104510.0,104500.0,0.30668009]
[1749932274270,0.29090698,104510.0,104500.0,0.29711136]
[1749932274484,0.28133861,104510.0,104500.0,0.28754254]
[1749932274699,0.28133861,104510.0,104500.0,0.30668009]
[1749932274920,0.27177034,104510.0,104500.0,0.30668009]
[1749932275140,0.28121861,104510.0,104500.0,0.30668009]
[1749932275584,0.29078707,104510.0,104500.0,0.28754254]
[1749932275813,0.48215631,104510.0,104500.0,0.28754254]
[1749932276032,0.48215631,104510.0,104500.0,0.29711136]
[1749932276707,0.28121861,104510.0,104500.0,0.30668009]
[1749932276926,0.29078698,104510.0,104500.0,0.30668009]
[1749932277152,0.29078698,104510.0,104500.0,0.35695861]
[1749932277379,0.12053861,104510.0,104500.0,0.35695861]
[1749932277601,0.28121861,104510.0,104500.0,0.35695861]
[1749932278052,0.27873861,104510.0,104500.0,0.35695861]
[1749932278495,0.28834698,104510.0,104500.0,0.35695861]
[1749932279161,0.09888225,104510.0,104500.0,0.35695861]
[1749932279379,0.26917025,104510.0,104500.0,0.35695861]
[1749932279817,0.009568,104510.0,104500.0,0.35695861]
[1749932280040,0.04918244,104510.0,104500.0,0.35695861]
[1749932280269,0.01913545,104510.0,104500.0,0.34738887]
[1749932280491,0.02870345,104510.0,104500.0,0.34738887]
[1749932281145,0.02870345,104510.0,104500.0,0.29711035]
[1749932281581,0.03827163,104510.0,104500.0,0.29711035]
[1749932281833,0.01913545,104510.0,104500.0,0.29711035]
[1749932282074,0.02870345,104510.0,104500.0,0.29711035]
[1749932283930,0.07797945,104510.0,104500.0,0.29711035]
[1749932284422,0.08754772,104510.0,104500.0,0.2875418]
[1749932284884,0.06841136,104510.0,104500.0,0.2875418]
[1749932285115,0.04927545,104510.0,104500.0,0.2875418]
[1749932285342,0.06841127,104510.0,104500.0,0.3519905]
[1749932286048,0.08754772,104510.0,104500.0,0.2875418]
[1749932286273,0.27891779,104510.0,104500.0,0.25883533]
[1749932286497,0.26934997,104510.0,104500.0,0.27797344]
[1749932286731,0.26934997,104510.0,104500.0,0.26840452]
[1749932286958,0.06841227,104510.0,104500.0,0.28754226]
[1749932287169,0.25021351,104510.0,104500.0,0.06744778]
[1749932287393,0.29345351,104510.0,104500.0,0.28754299]
[1749932287614,0.29345351,104510.0,104500.0,0.28754317]
[1749932287829,0.29345351,104510.0,104500.0,0.29711227]
[1749932288294,0.29345351,104510.0,104500.0,0.28754317]
[1749932288524,0.04324,104510.0,104500.0,0.28754317]
[1749932288745,0.23460924,104510.0,104500.0,0.28754317]
[1749932289193,0.23460924,104510.0,104500.0,0.27797398]
[1749932289472,0.23460924,104510.0,104500.0,0.28754308]
[1749932289904,0.27429981,104510.0,104500.0,0.28754308]
[1749932290363,0.27429981,104510.0,104500.0,0.06744778]
[1749932290576,0.27429981,104510.0,104500.0,0.28754317]
[1749932290818,0.12579632,104510.0,104500.0,0.28754317]
[1749932291251,0.12579632,104510.0,104500.0,0.07701715]
[1749932291685,0.12579632,104510.0,104500.0,0.08658643]
[1749932292346,0.12579632,104510.0,104500.0,0.06744778]
[1749932292576,0.32579632,104510.0,104500.0,0.03464778]
[1749932292795,0.32579632,104510.0,104500.0,0.00204778]
[1749932293019,0.04324,104510.0,104500.0,0.00204778]
[1749932293245,0.23460924,104510.0,104500.0,0.00204778]
[1749932293463,0.57460924,104510.0,104500.0,0.00204778]
[1749932293676,0.6143919,104510.0,104500.0,0.00204778]
[1749932294347,0.82630188,104510.0,104500.0,0.00204778]
[1749932294584,0.84900188,104510.0,104500.0,0.00204778]
[1749932294812,0.87736437,104510.0,104500.0,0.00204778]
[1749932296499,0.81049615,104510.0,104500.0,0.00204778]
[1749932296748,0.73575615,104510.0,104500.0,0.00204778]
[1749932296998,0.93983615,104510.0,104500.0,0.03414778]
[1749932297246,0.91647142,104510.0,104500.0,0.03414778]
[1749932297493,0.91647142,104510.0,104500.0,0.06694778]
[1749932298663,0.94483391,104510.0,104500.0,0.06694778]
[1749932298895,0.94483391,104510.0,104500.0,0.03414778]
[1749932299419,0.94483391,104510.0,104500.0,0.06694778]
[1749932299683,0.91647142,104510.0,104500.0,0.03414778]
[1749932300796,0.94483391,104510.0,104500.0,0.06694778]
[1749932301668,0.74075391,104510.0,104500.0,0.06694778]
[1749932301880,0.94483391,104510.0,104500.0,0.06694778]
[1749932302336,0.48559214,104510.0,104500.0,0.2679047]
[1749932302581,0.48559214,104510.0,104500.0,0.29661172]
[1749932302582,0.08302266,104510.0,104500.0,0.29661172]
[1749932302803,0.27785926,104520.0,104500.0,0.30437954]
[1749932303027,0.06237408,104520.0,104510.0,0.22007388]
[1749932303251,0.08150834,104520.0,104510.0,0.21050597]
[1749932303480,0.58238834,104520.0,104510.0,0.21050607]
[1749932303693,0.58238834,104520.0,104510.0,0.28317434]
[1749932304569,0.34,104520.0,104510.0,0.29274243]
[1749932304833,0.61443934,104530.0,104520.0,0.25445093]
[1749932305045,0.9149611,104530.0,104520.0,0.25445093]
[1749932305482,0.9150411,104530.0,104520.0,0.25445093]
[1749932306157,0.90547484,104530.0,104520.0,0.25445093]
[1749932307253,0.74435484,104530.0,104520.0,0.25445093]
[1749932307519,0.94476163,104530.0,104520.0,0.25445093]
[1749932307937,0.94476163,104530.0,104520.0,0.26401838]
[1749932308150,0.74148163,104530.0,104520.0,0.26401847]
[1749932308374,0.38036679,104530.0,104520.0,0.29272]
[1749932308586,0.04036679,104530.0,104520.0,0.29272]
[1749932310031,0.04036679,104530.0,104520.0,0.38896176]
[1749932310032,0.002,104530.0,104520.0,0.38896176]
[1749932311359,0.002,104530.0,104520.0,0.54992176]
[1749932311973,0.002,104530.0,104520.0,0.62500762]
[1749932312855,0.002,104530.0,104520.0,0.54992176]
[1749932313933,0.002,104530.0,104520.0,0.38896176]
[1749932314148,0.002,104530.0,104520.0,0.29272]
[1749932330186,0.002,104530.0,104520.0,0.38896176]
[1749932331112,0.001,104530.0,104520.0,0.93909494]
[1749932331326,0.57280707,104560.0,104550.0,0.21998933]
[1749932331542,0.40192394,104560.0,104550.0,0.28448933]
[1749932331752,0.41148718,104560.0,104550.0,0.28448933]
[1749932331962,0.4114872,104560.0,104550.0,0.28448933]
[1749932332196,0.36868963,104560.0,104550.0,0.28448933]
[1749932332407,0.3591263,104560.0,104550.0,0.28448933]
[1749932332624,0.03332649,104570.0,104560.0,0.28246828]
[1749932332845,0.06677191,104580.0,104570.0,0.20082222]
[1749932333092,0.11039505,104580.0,104570.0,0.28244715]
[1749932333364,0.26251004,104580.0,104570.0,0.27288482]
[1749932333598,0.26251004,104580.0,104570.0,0.28244724]
[1749932333599,0.60251002,104580.0,104570.0,0.28244724]
[1749932333828,0.62163349,104580.0,104570.0,0.27288491]
[1749932334057,0.46031431,104580.0,104570.0,0.26332241]
[1749932334285,0.46031431,104580.0,104570.0,0.27388519]
[1749932334286,0.50167898,104580.0,104570.0,0.27388519]
[1749932334569,0.5528693,104580.0,104570.0,0.26432241]
[1749932334800,0.49611748,104580.0,104570.0,0.24328519]
[1749932335035,0.47767302,104580.0,104570.0,0.24328519]
[1749932335283,0.4039518,104580.0,104570.0,0.29301012]
[1749932335516,0.39439056,104580.0,104570.0,0.29301012]
[1749932335770,0.41351349,104580.0,104570.0,0.29301012]
[1749932335997,0.4135135,104580.0,104570.0,0.29301012]
[1749932336220,0.4230751,104580.0,104570.0,0.29301021]
[1749932336437,0.41351332,104580.0,104570.0,0.29301021]
[1749932336678,0.40395191,104580.0,104570.0,0.30257254]
[1749932336901,0.39506928,104580.0,104570.0,0.35195757]
[1749932337132,0.40395209,104580.0,104570.0,0.35195757]
[1749932337353,0.40395211,104580.0,104570.0,0.35195757]
[1749932337575,0.40395227,104580.0,104570.0,0.35195757]
[1749932337817,0.0543912,104580.0,104570.0,0.35195757]
[1749932338052,0.00714341,104580.0,104570.0,0.44819933]
[1749932338289,0.00714341,104580.0,104570.0,0.60939933]
[1749932338969,0.01603856,104580.0,104570.0,0.3988143]
[1749932339224,0.01603856,104580.0,104570.0,0.29301012]
[1749932339450,0.0557056,104580.0,104570.0,0.29301012]
[1749932339682,0.00314341,104580.0,104570.0,0.46486982]
[1749932340118,0.00114341,104580.0,104570.0,0.62526982]
[1749932340331,0.00114341,104580.0,104570.0,0.72141904]
[1749932340566,0.00214341,104580.0,104570.0,0.62526982]
[1749932340792,0.00014341,104580.0,104570.0,0.54965188]
[1749932341089,0.00014341,104580.0,104570.0,0.55165188]
[1749932341311,0.00014341,104580.0,104570.0,0.55365188]
[1749932341965,0.00014341,104580.0,104570.0,0.56819273]
[1749932342186,0.00014341,104580.0,104570.0,1.45832591]
[1749932342412,0.00014341,104580.0,104570.0,1.49732806]
[1749932342637,0.00014341,104580.0,104570.0,0.94719488]
[1749932343857,0.00014341,104580.0,104570.0,1.54732806]
[1749932344120,0.14776324,104610.0,104600.0,0.28388415]
[1749932344371,0.14776337,104610.0,104600.0,0.54160591]
[1749932344594,0.1477632,104610.0,104600.0,0.54160591]
[1749932344802,0.14776326,104610.0,104600.0,0.54160591]
[1749932345021,0.1477635,104610.0,104600.0,0.54160591]
[1749932345235,0.1477635,104610.0,104600.0,0.61679933]
[1749932345452,0.13886497,104610.0,104600.0,0.61679933]
[1749932345666,0.0386086,104630.0,104620.0,0.28384213]
[1749932345891,0.03908699,104630.0,104620.0,0.28384213]
[1749932346119,0.00047839,104630.0,104620.0,0.40623686]
[1749932347170,0.01455127,104650.0,104640.0,0.20068788]
[1749932347388,0.24824064,104650.0,104640.0,0.21024408]
[1749932347625,0.43935469,104650.0,104640.0,0.19113149]
[1749932347852,0.21024362,104640.0,104630.0,0.22244976]
[1749932348072,0.21980056,104640.0,104630.0,0.21026454]
[1749932348291,0.06789173,104640.0,104630.0,0.21982166]
[1749932348506,0.25902322,104640.0,104630.0,0.21982184]
[1749932348751,0.06789173,104640.0,104630.0,0.22937896]
[1749932348967,0.06789164,104640.0,104630.0,0.22937896]
[1749932349376,0.06789164,104640.0,104630.0,0.27747001]
[1749932349621,0.06789164,104640.0,104630.0,0.22937905]
[1749932349843,0.06789164,104640.0,104630.0,0.22937914]
[1749932350074,0.06789164,104640.0,104630.0,0.23893626]
[1749932350286,0.06033479,104640.0,104630.0,0.23893562]
[1749932350508,0.27357924,104640.0,104630.0,0.20070715]
[1749932350717,0.27357924,104640.0,104630.0,0.21982166]
[1749932350926,0.41289118,104640.0,104630.0,0.21982166]
[1749932351142,0.41289118,104640.0,104630.0,0.22937869]
[1749932351368,0.41289118,104640.0,104630.0,0.23893581]
[1749932351587,0.42244766,104640.0,104630.0,0.23893581]
[1749932352016,0.42244766,104640.0,104630.0,0.22937878]
[1749932352434,0.42244766,104640.0,104630.0,0.23893581]
[1749932352855,0.42244766,104640.0,104630.0,0.21982166]
[1749932353074,0.42244766,104640.0,104630.0,0.22937878]
[1749932353291,0.42244766,104640.0,104630.0,0.23893581]
[1749932353503,0.42244766,104640.0,104630.0,0.21026445]
[1749932353757,0.42244766,104640.0,104630.0,0.21982157]
[1749932354182,0.42244766,104640.0,104630.0,0.2293786]
[1749932354599,0.61357915,104640.0,104630.0,0.21026445]
[1749932354816,0.61357979,104640.0,104630.0,0.21982166]
[1749932355062,0.61357979,104640.0,104630.0,0.22937878]
[1749932355310,0.41289173,104640.0,104630.0,0.21982166]
[1749932355542,0.41289173,104640.0,104630.0,0.22937878]
[1749932355991,0.40333525,104640.0,104630.0,0.23893536]
[1749932356209,0.40333525,104640.0,104630.0,0.25967842]
[1749932356430,0.41289173,104640.0,104630.0,0.25967842]
[1749932356702,0.00955712,104630.0,104620.0,0.25436803]
[1749932356924,0.01911387,104630.0,104620.0,0.29240053]
[1749932357154,0.00955675,104630.0,104620.0,0.2923997]
[1749932357388,0.60789571,104640.0,104630.0,0.21026427]
[1749932357655,0.79902683,104640.0,104630.0,0.24036436]
[1749932357909,0.38122266,104640.0,104630.0,0.33095588]
[1749932358140,0.40989091,104640.0,104630.0,0.33095588]
[1749932358362,0.40789091,104640.0,104630.0,0.32139904]
[1749932358573,0.60857897,104640.0,104630.0,0.22124976]
[1749932358779,0.57991072,104640.0,104630.0,0.19114976]
[1749932359217,0.57991072,104640.0,104630.0,0.20070724]
[1749932359430,0.58091072,104640.0,104630.0,0.20070724]
[1749932359639,0.58091072,104640.0,104630.0,0.21026463]
[1749932360067,0.59921354,104640.0,104630.0,0.21360304]
[1749932360282,0.42883942,104640.0,104630.0,0.22316016]
[1749932360504,0.43852835,104640.0,104630.0,0.25326016]
[1749932360719,0.42964939,104640.0,104630.0,0.30192874]
[1749932360934,0.43852758,104640.0,104630.0,0.30192874]
[1749932361153,0.43852404,104640.0,104630.0,0.24370304]
[1749932361368,0.41189146,104640.0,104630.0,0.25326025]
[1749932361583,0.43851896,104640.0,104630.0,0.25326025]
[1749932361799,0.43851867,104640.0,104630.0,0.25326025]
[1749932362007,0.43851713,104640.0,104630.0,0.26281737]
[1749932362219,0.40233498,104640.0,104630.0,0.28595989]
[1749932362431,0.42076673,104640.0,104630.0,0.28595989]
[1749932362643,0.43851749,104640.0,104630.0,0.27640268]
[1749932362852,0.43851741,104640.0,104630.0,0.27640268]
[1749932363104,0.41189146,104640.0,104630.0,0.27640268]
[1749932363362,0.42896045,104640.0,104630.0,0.27640268]
[1749932363583,0.43851748,104640.0,104630.0,0.27640268]
[1749932363832,0.4296421,104640.0,104630.0,0.28595971]
[1749932364078,0.43851753,104640.0,104630.0,0.27640268]
[1749932364322,0.43851761,104640.0,104630.0,0.27640268]
[1749932364547,0.43851761,104640.0,104630.0,0.28595989]
[1749932364769,0.42076694,104640.0,104630.0,0.28595989]